fUST/lending_fUST_20250920
["ID","MTS","AMOUNT","RATE_DAILY","PERIOD"]
[386520075,1758339046385,-151.0,0.00028985,7]
[386520076,1758339046394,-16997.98372874,0.00029238,7]
[386520077,1758339046406,-623.89357415,0.00029238,7]
[386520078,1758339046418,-4530.99280629,0.00029238,7]
[386520081,1758339079723,150.0,0.00020657,2]
[386520082,1758339232714,360.86431805,0.00027,120]
[386520087,1758339797841,985.0,0.00027,120]
[386520089,1758339863827,150.0,0.00020462,2]
[386520091,1758339929077,150.0,0.00020465,2]
[386520092,1758339995711,150.0,0.0002046,2]
[386520095,1758340045243,-150.0,0.00022325,2]
[386520096,1758340045264,-889.0,0.00023,16]
[386520097,1758340045285,-627.32073396,0.00023,2]
[386520098,1758340045309,-87.94753322,0.00024185,2]
[386520099,1758340054103,-62.05246678,0.00024185,2]
[386520100,1758340054125,-480.0,0.00024999,2]
[386520101,1758340054147,-9.92509138,0.00024999,2]
[386520102,1758340060858,150.0,0.00020462,2]
[386520104,1758340119621,258.56042282,0.000199,2]
[386520105,1758340127861,150.0,0.00020449,2]
[386520112,1758340193908,150.0,0.00020438,2]
[386520151,1758340232494,-150.0,0.00022322,2]
[386520153,1758340232503,-150.0,0.00024166,2]
[386520155,1758340232512,-363.59084779,0.00024999,2]
[386520157,1758340232521,-103.6534864,0.00024999,2]
[386520160,1758340232532,-319.31330531,0.00024999,2]
[386520223,1758340238322,-57.03320829,0.00024999,2]
[386520224,1758340238332,-261.59,0.00025,14]
[386520225,1758340238341,-480.0,0.00025273,2]
[386520226,1758340238350,-480.0,0.00025547,2]
[386520227,1758340238360,-277.05467501,0.00025592,2]
[386520228,1758340238370,-480.0,0.00025821,2]
[386520229,1758340238379,-308.5524636,0.00025858,2]
[386520230,1758340238388,-184.340337,0.00025921,2]
[386520231,1758340238397,-160.0,0.00025921,2]
[386520232,1758340238407,-480.0,0.00026095,2]
[386520233,1758340238416,-480.0,0.00026369,2]
[386520234,1758340238426,-500.0,0.00026384,2]
[386520235,1758340238435,-480.0,0.00026643,2]
[386520236,1758340238444,-160.0,0.00026803,2]
[386520237,1758340238453,-160.0,0.00026807,2]
[386520238,1758340238462,-160.0,0.00026866,2]
[386520239,1758340238471,-218.03426629,0.00026874,2]
[386520241,1758340238481,-233.47853244,0.00026875,2]
[386520242,1758340238490,-160.0,0.00026882,2]
[386520243,1758340238500,-480.0,0.00026917,2]
[386520244,1758340238509,-300.0,0.00026997,2]
[386520245,1758340238518,-600.19453027,0.00026998,2]
[386520246,1758340238527,-414.99090654,0.00026998,2]
[386520247,1758340238537,-480.0,0.00026998,2]
[386520248,1758340238546,-513.32186052,0.00026998,2]
[386520249,1758340238556,-21.30881949,0.00026998,2]
[386520267,1758340240414,-250.64131695,0.00026998,2]
[386520268,1758340240424,-480.0,0.00026998,2]
[386520269,1758340240434,-179.45593197,0.00026998,2]
[386520270,1758340240443,-331.13400471,0.00026998,2]
[386520271,1758340240452,-367.45,0.00026998,2]
[386520272,1758340240462,-156.36573537,0.00026998,2]
[386520273,1758340240471,-575.82412327,0.00026998,2]
[386520274,1758340240481,-480.0,0.00026998,2]
[386520275,1758340240490,-173.61701143,0.00026998,2]
[386520276,1758340240500,-480.0,0.00026998,2]
[386520277,1758340240511,-480.0,0.00026999,2]
[386520278,1758340240520,-480.0,0.00026999,2]
[386520279,1758340240530,-480.0,0.00026999,2]
[386520280,1758340240539,-480.0,0.00026999,2]
[386520281,1758340240549,-275.2438002,0.00027142,2]
[386520282,1758340240558,-500.0,0.0002715,2]
[386520283,1758340240568,-500.0,0.0002715,2]
[386520284,1758340240580,-480.0,0.00027191,2]
[386520285,1758340240589,-326.24,0.00027271,2]
[386520286,1758340240598,-480.0,0.00027272,2]
[386520287,1758340240608,-480.0,0.00027272,2]
[386520288,1758340240617,-480.0,0.00027272,2]
[386520289,1758340240627,-250.10088994,0.00027272,2]
[386520290,1758340240636,-480.0,0.00027272,2]
[386520291,1758340240646,-480.0,0.00027272,2]
[386520292,1758340240655,-625.0,0.00027272,2]
[386520293,1758340240665,-480.0,0.00027273,2]
[386520294,1758340240674,-287.93465125,0.00027312,2]
[386520295,1758340240684,-487.73885624,0.00027312,2]
[386520296,1758340240693,-512.42877227,0.00027313,2]
[386520297,1758340240703,-508.95331759,0.00027313,2]
[386520298,1758340240713,-500.0,0.00027313,2]
[386520299,1758340240723,-503.19989766,0.00027313,2]
[386520300,1758340240732,-504.10306004,0.00027313,2]
[386520301,1758340240742,-505.59102816,0.00027313,2]
[386520302,1758340240751,-480.0,0.00027465,2]
[386520303,1758340240761,-560.1636376,0.00027472,2]
[386520304,1758340240771,-480.0,0.00027472,2]
[386520305,1758340240780,-657.64,0.00027474,2]
[386520306,1758340240790,-6.76596396,0.00027514,2]
[386520307,1758340240802,-473.23403604,0.00027514,2]
[386520308,1758340240811,-401.72113652,0.00027514,2]
[386520322,1758340243488,-94.20019183,0.00027514,2]
[386520323,1758340243498,-393.98649249,0.00027546,2]
[386520324,1758340246392,-86.01350751,0.00027546,2]
[386520325,1758340246401,-422.26880588,0.00027546,2]
[386520326,1758340246411,-480.0,0.00027546,2]
[386520327,1758340246420,-480.0,0.00027546,2]
[386520328,1758340246429,-625.0,0.00027546,2]
[386520329,1758340246438,-397.11131172,0.00027547,2]
[386520330,1758340246447,-490.07490862,0.00027609,2]
[386520331,1758340246456,-1000.0,0.00027698,2]
[386520332,1758340246465,-1020.3870454,0.00027698,5]
[386520333,1758340246474,-480.0,0.00027739,2]
[386520334,1758340246484,-234.35280016,0.00027748,2]
[386520335,1758340246495,-423.28719984,0.00027748,2]
[386520336,1758340246504,-500.0,0.00027759,2]
[386520337,1758340246514,-500.0,0.00027759,2]
[386520338,1758340246523,-521.23963289,0.00027759,2]
[386520339,1758340246532,-480.0,0.00027788,2]
[386520340,1758340246541,-344.04253885,0.0002782,2]
[386520341,1758340246550,-59.55492742,0.0002782,2]
[386520342,1758340246561,-208.72213558,0.0002782,2]
[386520343,1758340246571,-188.93435515,0.0002782,2]
[386520345,1758340314662,215.61617212,0.000199,2]
[386520346,1758340396166,150.0,0.00020459,2]
[386520347,1758340464014,150.0,0.00020457,2]
[386520348,1758340493699,203.92536139,0.000199,2]
[386520350,1758340530699,150.0,0.00020637,2]
[386520351,1758340599491,150.0,0.00020448,2]
[386520353,1758340629396,488.3041891,0.00020346,4]
[386520354,1758340665813,150.0,0.00020449,2]
[386520355,1758340677822,203.92536131,0.000199,2]
[386520358,1758340730813,150.0,0.00020452,2]
[386520359,1758340796831,150.0,0.00020454,2]
[386520360,1758340859737,205.72426293,0.000199,2]
[386520361,1758340862249,150.0,0.00020475,2]
[386520362,1758340927387,150.0,0.00020458,2]
[386520363,1758340993420,150.0,0.00020452,2]
[386520365,1758341043369,202.96239603,0.000199,2]
[386520366,1758341058614,150.0,0.00020459,2]
[386520367,1758341123373,150.0,0.00020461,2]
[386520370,1758341188848,150.0,0.00020458,2]
[386520371,1758341230629,-202.96239594,0.0002212,2]
[386520372,1758341230652,-150.0,0.00022307,2]
[386520373,1758341230672,-500.0,0.00022307,2]
[386520374,1758341230692,-233.47853244,0.00024155,2]
[386520375,1758341230718,-60.68132692,0.00024166,2]
[386520376,1758341237094,-89.31867308,0.00024166,2]
[386520377,1758341237119,-146.18891613,0.00026041,2]
[386520378,1758341240710,203.46533867,0.000199,2]
[386520379,1758341255516,150.0,0.00020465,2]
[386520380,1758341420012,206.10054752,0.000199,2]
[386520413,1758341432769,-206.10054744,0.0002212,2]
[386520414,1758341432779,-290.2427847,0.000225,2]
[386520415,1758341432789,-24.19147821,0.00024341,2]
[386520416,1758341432823,-181.90906923,0.00024341,2]
[386520417,1758341432832,-161.71526359,0.00025246,2]
[386520418,1758341432842,-435.46164181,0.00026384,2]
[386520424,1758341438488,-64.53835819,0.00026384,2]
[386520425,1758341438498,-206.10054744,0.00026561,5]
[386520426,1758341438508,-480.0,0.00026998,2]
[386520427,1758341438517,-218.03426629,0.00027149,2]
[386520428,1758341438527,-160.0,0.00027149,2]
[386520429,1758341438536,-160.0,0.00027255,2]
[386520430,1758341438545,-160.0,0.00027266,2]
[386520431,1758341438554,-46.66948462,0.0002727,2]
[386520573,1758341616073,206.63924551,0.000199,2]
[386520575,1758341799539,204.34763416,0.000199,2]
[386520576,1758341995390,200.41033623,0.000199,2]
[386520595,1758342182008,209.66043464,0.000199,2]
[386520599,1758342382400,210.07419952,0.000199,2]
[386520601,1758342434150,-194.18377651,0.00021972,2]
[386520602,1758342440120,-15.89042286,0.00021972,2]
[386520603,1758342440145,-210.07419937,0.00024045,2]
[386520604,1758342440166,-198.38936905,0.00026017,2]
[386520605,1758342440192,-60.67894593,0.00026117,4]
[386520606,1758342495284,342.0,0.000207,2]
[386520611,1758342563088,208.07343774,0.000199,2]
[386520753,1758342637768,-156.8,0.00021,5]
[386520755,1758342637778,-208.0734377,0.00021972,2]
[386520757,1758342637788,-208.0734377,0.00024045,2]
[386520759,1758342637797,-1125.97106497,0.00025,2]
[386520763,1758342637822,-614.96499242,0.00025,2]
[386520765,1758342637832,-208.0734377,0.00026117,4]
[386520767,1758342637841,-500.0,0.00026384,2]
[386520769,1758342637851,-381.51777227,0.00026752,2]
[386520782,1758342637964,-566.31308684,0.00026752,2]
[386520784,1758342637974,-2262.98709502,0.00026752,2]
[386520786,1758342637983,-300.0,0.00026999,2]
[386520788,1758342637993,-478.0,0.00026999,2]
[386520790,1758342638002,-716.97419145,0.00027,2]
[386520792,1758342638011,-3605.87468768,0.00027,14]
[386520794,1758342638020,-160.0,0.00027064,2]
[386520796,1758342638029,-160.0,0.00027073,2]
[386520798,1758342638038,-233.47853244,0.00027129,2]
[386520800,1758342638047,-160.0,0.00027129,2]
[386520802,1758342638057,-726.24070569,0.00027137,2]
[386520804,1758342638066,-500.0,0.000273,2]
[386520806,1758342638075,-500.0,0.0002754,2]
[386520808,1758342638084,-848.27550084,0.00027668,2]
[386520810,1758342638093,-500.0,0.00027946,2]
[386520812,1758342638102,-280.0,0.00028,7]
[386520814,1758342638111,-1300.38217924,0.00028,2]
[386520815,1758342638120,-2166.17150233,0.00028,120]
[386520817,1758342638129,-165.04619946,0.00028,2]
[386520819,1758342638138,-1110.08,0.00028,2]
[386520821,1758342638147,-173.27644052,0.00028133,2]
[386520823,1758342638156,-480.0,0.00028139,2]
[386520825,1758342638165,-1110.08,0.0002814,2]
[386520827,1758342638175,-208.0734377,0.00028189,9]
[386520829,1758342638184,-608.29918753,0.00028222,2]
[386520831,1758342638193,-480.0,0.00028223,2]
[386520833,1758342638202,-480.0,0.00028223,2]
[386520835,1758342638211,-251.1021764,0.00028223,2]
[386520837,1758342638221,-205.4747174,0.00028223,2]
[386520839,1758342638229,-492.17586035,0.00028223,2]
[386520841,1758342638239,-488.21816104,0.00028223,2]
[386520843,1758342638248,-480.0,0.00028223,2]
[386520845,1758342638257,-480.0,0.00028223,2]
[386520847,1758342638266,-480.0,0.00028223,2]
[386520849,1758342638275,-480.0,0.00028223,2]
[386520851,1758342638283,-377.18824703,0.00028223,2]
[386520853,1758342638294,-389.97,0.00028223,2]
[386520855,1758342638303,-482.16324779,0.00028223,2]
[386520857,1758342638312,-481.78751058,0.00028223,2]
[386520859,1758342638321,-480.0,0.00028232,2]
[386520861,1758342638330,-480.0,0.00028232,2]
[386520863,1758342638339,-480.0,0.00028232,2]
[386520865,1758342638348,-669.21,0.00028232,2]
[386520867,1758342638357,-297.46853025,0.00028233,2]
[386520869,1758342638367,-490.0010079,0.00028233,2]
[386520871,1758342638376,-488.03606376,0.00028233,2]
[386520873,1758342638385,-487.82382391,0.00028233,2]
[386520875,1758342638394,-500.82303565,0.00028233,2]
[386520877,1758342638404,-488.53872383,0.00028233,2]
[386520878,1758342638413,-491.8626027,0.00028233,2]
[386520879,1758342638423,-489.99276791,0.00028233,2]
[386520880,1758342638432,-480.0,0.00028233,2]
[386520881,1758342638441,-482.41795617,0.00028233,2]
[386520882,1758342638450,-480.0,0.00028233,2]
[386520883,1758342638459,-480.0,0.00028233,2]
[386520884,1758342638468,-494.97038218,0.00028233,2]
[386520885,1758342638477,-485.43787419,0.00028233,2]
[386520886,1758342638487,-480.0,0.00028233,2]
[386520887,1758342638497,-481.24686048,0.00028233,2]
[386520889,1758342638506,-246.99669069,0.00028233,2]
[386520890,1758342638515,-480.0,0.00028233,2]
[386520891,1758342638524,-482.8,0.00028233,2]
[386520892,1758342638534,-480.0,0.00028233,2]
[386520893,1758342638543,-478.50079093,0.00028233,2]
[386520894,1758342638552,-480.0,0.00028233,2]
[386520895,1758342638561,-685.61,0.00028233,2]
[386520896,1758342638571,-480.0,0.00028233,2]
[386520897,1758342638580,-151.30740363,0.00028233,2]
[386520898,1758342638589,-480.0,0.00028233,2]
[386520899,1758342638598,-824.9441133,0.00028345,2]
[386520900,1758342638608,-173.2764405,0.00028359,2]
[386520901,1758342638617,-3327.14857709,0.00028381,2]
[386520902,1758342638626,-420.36483084,0.00028381,2]
[386520903,1758342638635,-480.0,0.00028413,2]
[386520904,1758342638645,-386.09,0.0002847,3]
[386520905,1758342638654,-193.05,0.0002847,3]
[386520906,1758342638663,-579.17,0.0002847,3]
[386520907,1758342638672,-500.0,0.00028472,2]
[386520908,1758342638681,-505.58049554,0.00028473,5]
[386520909,1758342638691,-502.73966054,0.00028473,5]
[386520910,1758342638701,-500.0,0.00028473,5]
[386520911,1758342638711,-504.06798637,0.00028473,5]
[386520912,1758342638720,-500.0,0.00028473,5]
[386520913,1758342638729,-501365.028235,0.0002848,2]
[386520914,1758342638742,-661.63199448,0.0002848,2]
[386520915,1758342638751,-480.0,0.00028489,2]
[386520916,1758342638760,-39126.11944225,0.0002849,2]
[386520963,1758342758990,207.73821045,0.000199,2]
[386520965,1758342939463,200.90383247,0.000199,2]
[386520967,1758343135972,201.29239013,0.000199,2]
[386520968,1758343216139,11792.003,0.00029362,60]
[386520969,1758343316110,204.1632148,0.000199,2]
[386520970,1758343512558,204.48307242,0.000199,2]
[386520971,1758343519600,150.0,0.00020572,2]
[386520973,1758343586381,150.0,0.00020455,2]
[386520974,1758343625334,-204.4830724,0.00021728,2]
[386520975,1758343625359,-204.4830724,0.00023557,2]
[386520976,1758343625382,-204.4830724,0.00025385,3]
[386520977,1758343625403,-469.7973237,0.00026227,2]
[386520978,1758343625422,-628.99226046,0.00026229,2]
[386520979,1758343625442,-56.22593282,0.00026384,2]
[386520980,1758343629090,-443.77406718,0.00026384,2]
[386520981,1758343629117,-72.42411282,0.00027214,7]
[386520983,1758343692375,210.24364698,0.000199,2]
[386521024,1758343832076,-210.24364688,0.00021972,2]
[386521027,1758343832086,-210.24364688,0.00024045,2]
[386521029,1758343832094,-165.85494874,0.00026117,4]
[386521125,1758343840141,-44.38869814,0.00026117,4]
[386521126,1758343840151,-391.24624161,0.00026209,2]
[386521127,1758343840161,-500.0,0.00026384,2]
[386521128,1758343840171,-173.7378788,0.0002675,2]
[386521129,1758343840180,-199.0,0.00027326,2]
[386521130,1758343840190,-160.0,0.00027327,2]
[386521131,1758343840199,-233.47853244,0.00027389,2]
[386521132,1758343840209,-848.27550084,0.00027389,2]
[386521133,1758343840219,-160.0,0.00027393,2]
[386521134,1758343840228,-6274.25383497,0.0002763,2]
[386521135,1758343840238,-162.0715699,0.00027826,30]
[386521136,1758343840247,-623.7310004,0.00027826,30]
[386521137,1758343840256,-162.0715699,0.00027826,30]
[386521138,1758343840266,-162.0715699,0.00027826,30]
[386521139,1758343840275,-162.0715699,0.00027826,30]
[386521140,1758343840285,-162.0715699,0.00027826,30]
[386521141,1758343840294,-325.8435115,0.00027826,30]
[386521142,1758343840304,-480.0,0.00027989,2]
[386521143,1758343840313,-480.0,0.00027989,2]
[386521144,1758343840322,-480.0,0.00027989,2]
[386521145,1758343840332,-480.0,0.00027989,2]
[386521146,1758343840341,-480.0,0.00027989,2]
[386521147,1758343840350,-8659.94105352,0.0002799,2]
[386521148,1758343840359,-5590.90745531,0.00028,10]
[386521149,1758343840369,-500.0,0.00028002,2]
[386521150,1758343840378,-173.2764405,0.00028057,2]
[386521151,1758343840387,-480.0,0.00028156,2]
[386521152,1758343840397,-480.0,0.00028156,2]
[386521153,1758343840406,-160.98769618,0.00028156,2]
[386521154,1758343840416,-609.43,0.00028157,2]
[386521155,1758343840425,-480.0,0.00028157,2]
[386521156,1758343840434,-480.0,0.00028157,2]
[386521157,1758343840448,-480.0,0.00028157,2]
[386521158,1758343840457,-522.62,0.00028157,2]
[386521159,1758343840467,-480.0,0.00028157,2]
[386521160,1758343840477,-413.34861132,0.00028157,2]
[386521161,1758343840488,-480.0,0.00028157,2]
[386521162,1758343840497,-480.0,0.00028157,2]
[386521163,1758343840506,-480.0,0.00028157,2]
[386521164,1758343840517,-480.0,0.00028157,2]
[386521165,1758343840526,-619.03,0.00028157,2]
[386521166,1758343840535,-480.0,0.00028157,2]
[386521167,1758343840544,-480.0,0.00028157,2]
[386521168,1758343840554,-552.64851935,0.00028157,2]
[386521169,1758343840563,-480.0,0.00028157,2]
[386521170,1758343840573,-507.84,0.00028157,2]
[386521171,1758343840582,-661.32,0.00028157,2]
[386521172,1758343840591,-480.0,0.00028158,2]
[386521173,1758343840601,-480.0,0.00028158,2]
[386521174,1758343840611,-480.0,0.00028158,2]
[386521175,1758343840621,-480.0,0.00028158,2]
[386521176,1758343840631,-480.0,0.00028158,2]
[386521177,1758343840640,-480.0,0.00028158,2]
[386521178,1758343840649,-480.0,0.00028158,2]
[386521179,1758343840658,-480.0,0.00028158,2]
[386521180,1758343840667,-480.0,0.00028158,2]
[386521181,1758343840676,-480.0,0.00028158,2]
[386521182,1758343840686,-480.0,0.00028158,2]
[386521183,1758343840695,-480.0,0.00028158,2]
[386521184,1758343840704,-480.0,0.00028158,2]
[386521185,1758343840714,-575.5,0.00028158,2]
[386521186,1758343840723,-377.00082456,0.00028158,2]
[386521187,1758343840732,-480.0,0.00028158,2]
[386521188,1758343840741,-480.0,0.00028158,2]
[386521189,1758343840750,-524.4230053,0.00028158,2]
[386521190,1758343840760,-498.5,0.00028158,2]
[386521191,1758343840769,-612.24677869,0.00028158,2]
[386521192,1758343840777,-480.0,0.00028158,2]
[386521193,1758343840785,-480.0,0.00028158,2]
[386521194,1758343840795,-480.0,0.00028158,2]
[386521195,1758343840803,-480.0,0.00028158,2]
[386521196,1758343840813,-480.0,0.00028158,2]
[386521197,1758343840822,-480.0,0.00028158,2]
[386521198,1758343840831,-480.0,0.00028158,2]
[386521199,1758343840840,-480.0,0.00028158,2]
[386521200,1758343840850,-480.0,0.00028158,2]
[386521201,1758343840859,-480.0,0.00028158,2]
[386521202,1758343840868,-504.47995261,0.00028158,2]
[386521203,1758343840877,-492.19044267,0.00028159,2]
[386521204,1758343840886,-210.24364688,0.00028189,9]
[386521205,1758343840896,-480.0,0.00028223,2]
[386521206,1758343840905,-480.0,0.00028223,2]
[386521207,1758343840914,-153.59302797,0.00028223,2]
[386521208,1758343840923,-151.0,0.00028223,2]
[386521209,1758343840932,-151.0,0.00028223,2]
[386521210,1758343840942,-428.0,0.00028223,2]
[386521211,1758343840951,-199.84946244,0.00028223,2]
[386521212,1758343840960,-500.0,0.00028223,2]
[386521213,1758343840969,-151.0,0.0002823,2]
[386521214,1758343840979,-591.84,0.0002823,2]
[386521215,1758343840988,-581.45389116,0.0002823,2]
[386521216,1758343840998,-480.0,0.00028231,2]
[386521217,1758343841008,-486.49497809,0.00028231,2]
[386521218,1758343841017,-480.0,0.00028231,2]
[386521219,1758343841026,-480.0,0.00028231,2]
[386521220,1758343841036,-480.0,0.00028231,2]
[386521221,1758343841046,-484.89549151,0.00028231,2]
[386521222,1758343841056,-480.0,0.00028231,2]
[386521223,1758343841065,-480.0,0.00028231,2]
[386521224,1758343841075,-480.0,0.00028231,2]
[386521225,1758343841084,-490.25097831,0.00028231,2]
[386521226,1758343841093,-480.0,0.00028231,2]
[386521227,1758343841103,-513.63,0.00028231,2]
[386521228,1758343841112,-480.0,0.00028231,2]
[386521229,1758343841122,-480.0,0.00028231,2]
[386521230,1758343841133,-480.0,0.00028231,2]
[386521231,1758343841142,-480.0,0.00028231,2]
[386521232,1758343841150,-480.0,0.00028231,2]
[386521233,1758343841160,-1228.27,0.00028232,2]
[386521234,1758343841170,-480.0,0.00028232,2]
[386521235,1758343841179,-480.0,0.00028232,2]
[386521236,1758343841188,-500.0,0.00028235,2]
[386521237,1758343841198,-391.53,0.00028263,2]
[386521238,1758343841208,-480.0,0.00028263,2]
[386521239,1758343841218,-480.0,0.00028263,2]
[386521240,1758343841233,-547.3552691,0.00028281,2]
[386521241,1758343841247,-500.0,0.00028291,2]
[386521242,1758343841256,-824.9441133,0.00028345,2]
[386521243,1758343841266,-500.0,0.00028357,2]
[386521244,1758343841276,-386.09,0.00028361,3]
[386521245,1758343841285,-411.6,0.00028361,3]
[386521246,1758343841294,-237.97,0.00028361,3]
[386521247,1758343841303,-215.52,0.00028361,3]
[386521248,1758343841313,-646.57,0.00028361,3]
[386521249,1758343841322,-151.0,0.0002837,7]
[386521250,1758343841332,-151.0,0.0002837,7]
[386521251,1758343841344,-151.0,0.0002837,7]
[386521252,1758343841353,-151.0,0.0002837,7]
[386521253,1758343841363,-151.0,0.0002837,7]
[386521254,1758343841372,-151.0,0.0002837,7]
[386521255,1758343841381,-151.0,0.0002837,7]
[386521256,1758343841390,-154.476238,0.0002837,7]
[386521257,1758343841399,-151.0,0.0002837,7]
[386521258,1758343841409,-151.0,0.0002837,7]
[386521259,1758343841419,-151.0,0.0002837,7]
[386521260,1758343841428,-151.0,0.0002837,7]
[386521261,1758343841437,-151.0,0.0002837,7]
[386521262,1758343841446,-151.0,0.0002837,7]
[386521263,1758343841456,-151.0,0.0002837,7]
[386521264,1758343841464,-151.0,0.0002837,7]
[386521265,1758343841473,-151.0,0.0002837,7]
[386521266,1758343841483,-151.0,0.0002837,7]
[386521267,1758343841492,-151.0,0.0002837,7]
[386521268,1758343841501,-571.795229,0.0002837,7]
[386521269,1758343841510,-571.795229,0.0002837,7]
[386521270,1758343841519,-571.795229,0.0002837,7]
[386521271,1758343841528,-571.795229,0.0002837,7]
[386521272,1758343841537,-151.0,0.0002837,7]
[386521273,1758343841546,-151.0,0.0002837,7]
[386521274,1758343841555,-275.533875,0.0002837,7]
[386521275,1758343841565,-151.0,0.0002837,7]
[386521276,1758343841574,-151.0,0.0002837,7]
[386521277,1758343841583,-3327.14857709,0.0002837,2]
[386521278,1758343841592,-151.0,0.0002837,7]
[386521279,1758343841601,-144.80073047,0.0002837,7]
[386521280,1758343841617,-6.19926953,0.0002837,7]
[386521281,1758343841626,-151.0,0.0002837,7]
[386521282,1758343841636,-151.988656,0.0002837,7]
[386521283,1758343841645,-197.64905574,0.0002837,7]
[386521284,1758343841655,-48.30093426,0.0002837,7]
[386521285,1758343841664,-151.0,0.0002837,7]
[386521286,1758343841673,-264.19261302,0.00028371,2]
[386521291,1758343845997,-151.0,0.0002837,7]
[386521292,1758343846006,-151.0,0.0002837,7]
[386521293,1758343846015,-6754.54200454,0.00028371,2]
[386521294,1758343846053,-771.4533225,0.00028371,2]
[386521295,1758343846063,-589.64999995,0.00028371,2]
[386521297,1758343894495,210.69959121,0.000199,2]
[386521300,1758344073474,206.52822362,0.000199,2]
[386521301,1758344269297,206.84877769,0.000199,2]
[386521303,1758344454154,209.07860662,0.000199,2]
[386521305,1758344649126,118.24109392,0.000199,2]
[386521306,1758344649150,91.11679667,0.000199,2]
[386521307,1758344661850,4715.23920924,0.00029367,60]
[386521311,1758344747974,150.0,0.00019843,2]
[386521312,1758344814722,150.0,0.00019842,2]
[386521314,1758344829082,207.97246402,0.000199,2]
[386521315,1758344835128,-150.0,0.00020788,2]
[386521316,1758344835152,-207.97246398,0.00021972,2]
[386521317,1758344835176,-207.97246398,0.00024045,2]
[386521318,1758344835200,-207.97246398,0.00026117,4]
[386521319,1758344835221,-435.33911125,0.00026292,2]
[386521320,1758344847083,-242.43566225,0.00026292,2]
[386521321,1758344847104,-21.14098604,0.00026366,2]
[386521326,1758345024225,208.28686972,0.000199,2]
[386521354,1758345032340,-208.28686967,0.00022726,2]
[386521356,1758345032352,-232.13062751,0.00025115,2]
[386521357,1758345032362,-208.28686967,0.00025552,3]
[386521358,1758345032373,-1458.0777806,0.00026263,2]
[386521359,1758345032387,-90.81736646,0.00026366,2]
[386521360,1758345032402,-148.3346815,0.00026366,2]
[386521361,1758345032413,-187.84103434,0.00026384,2]
[386521363,1758345032427,-312.15896566,0.00026384,2]
[386521364,1758345032438,-105.00606852,0.00026436,2]
[386521365,1758345032451,-1094.99393148,0.00026436,2]
[386521366,1758345032463,-10000.0,0.00026437,2]
[386521367,1758345032474,-500.0,0.00027556,2]
[386521368,1758345032485,-160.0,0.00027678,2]
[386521369,1758345032500,-159.84243201,0.0002768,2]
[386521370,1758345032511,-233.47853244,0.00027743,2]
[386521371,1758345032523,-505.58049554,0.00027773,5]
[386521372,1758345032534,-1005.00361704,0.00027773,2]
[386521373,1758345032546,-2218.0990514,0.00027779,2]
[386521374,1758345032558,-437.88421528,0.00027779,2]
[386521375,1758345032571,-225.76399249,0.0002778,2]
[386521376,1758345032582,-183.25878757,0.0002778,2]
[386521377,1758345032594,-361.9770562,0.0002778,2]
[386521379,1758345032606,-589.94881437,0.0002778,2]
[386521380,1758345032618,-612.43619406,0.0002778,2]
[386521381,1758345032631,-552.47618644,0.0002778,2]
[386521382,1758345032643,-589.94881437,0.0002778,2]
[386521383,1758345032655,-589.94881437,0.0002778,2]
[386521384,1758345032665,-589.94881437,0.0002778,2]
[386521385,1758345032675,-589.94881437,0.0002778,2]